Workbook

Sheet LEAVE CALCULATION
A3: شركة المجموعة المشتركة للمقاولات (ش.م.ك.م )
A4: Combined Group Contracting Co. (K.S.C.C)
A7: Leave Balance Calculation Sheet
B8: Date: | C8: =TODAY() -> 2019-08-05
A10: S/L | B10: File No | C10: Employee Name | D10: Designation | E10: Joining Date: | F10: Gross Salary | K10: Leave Balance Calculation
F11: Basic | G11: Accomodation | H11: Bonus | I11: Food | J11: Total Salary | K11: Days | L11: Net working days | M11: Leave Without Pay | N11: Previouse Paid Leave (days) | O11: Desirve Leaves ( Days) | P11: Leave Balance
A12: 1 | B12: 92107 | E12: =IFERROR(VLOOKUP($E$10,'92107'!$C$7:$G$7,4,0),"-") -> 2018-05-23 | F12: =IFERROR(VLOOKUP($F$11,'92107'!$A$11:$G$11,2,0),"-") -> 1500 | G12: =IFERROR(VLOOKUP($G$11,'92107'!$A$12:$G$12,2,0),"-") -> 0 | H12: =IFERROR(VLOOKUP($H$11,'92107'!$A$13:$G$13,2,0),"-") -> 0 | I12: =IFERROR(VLOOKUP($I$11,'92107'!$A$14:$G$14,2,0),"-") -> 0 | J12: =SUM(F12:I12) -> 1500 | K12: =$C$8-E12+1 -> 440 | L12: =K12-M12 -> 440 | M12: =IFERROR(VLOOKUP($M$11,'92107'!$A$22:$G$22,2,0),"-") -> 0 | N12: =IFERROR(VLOOKUP($N$11,'92107'!$A$26:$G$26,2,0),"-") -> 0 | O12: =IF(L12<=365,Y12,AB12) -> 36.16438356 | P12: =O12-N12 -> 36.16438356 | T12: 30 | U12: =L12*(30/365)-N12 -> 36.16438356 | V12: 12 | W12: =L12*(12/180)-N12 -> 29.33333333 | X12: less | Y12: He Don't Deserve Leave Salary | AA12: desirve | AB12: =IF(L12<365,W12,U12) -> 36.16438356
A13: 2 | B13: 91977 | E13: =IFERROR(VLOOKUP($E$10,'91977'!$C$7:$G$7,4,0),"-") -> 2017-02-05 | F13: =IFERROR(VLOOKUP($F$11,'91977'!$A$11:$G$11,2,0),"-") -> 700 | G13: =IFERROR(VLOOKUP($G$11,'91977'!$A$12:$G$12,2,0),"-") -> 0 | H13: =IFERROR(VLOOKUP($H$11,'91977'!$A$13:$G$13,2,0),"-") -> 0 | I13: =IFERROR(VLOOKUP($I$11,'91977'!$A$14:$G$14,2,0),"-") -> 0 | J13: =SUM(F13:I13) -> 700 | K13: =$C$8-E13+1 -> 912 | L13: =K13-M13 -> 912 | M13: =IFERROR(VLOOKUP($M$11,'91977'!$A$22:$G$22,2,0),"-") -> 0 | N13: =IFERROR(VLOOKUP($N$11,'91977'!$A$26:$G$26,2,0),"-") -> 0 | O13: =IF(L13<=365,Y13,AB13) -> 74.95890411 | P13: =O13-N13 -> 74.95890411 | T13: 30 | U13: =L13*(30/365)-N13 -> 74.95890411 | V13: 12 | W13: =L13*(12/180)-N13 -> 60.8 | X13: less | Y13: He Don't Deserve Leave Salary | AA13: desirve | AB13: =IF(L13<365,W13,U13) -> 74.95890411
A14: 3 | T14: 30 | U14: =L14*(30/365)-N14 -> 0 | V14: 12 | W14: =L14*(12/180)-N14 -> 0 | X14: less | Y14: He Don't Deserve Leave Salary | AA14: desirve | AB14: =IF(L14<365,W14,U14) -> 0
A15: 4 | T15: 30 | U15: 0 | V15: 12 | W15: 0 | X15: less | Y15: He Don't Deserve Leave Salary | AA15: desirve | AB15: 0
A16: 5 | T16: 30 | U16: 0 | V16: 12 | W16: 0 | X16: less | Y16: He Don't Deserve Leave Salary | AA16: desirve | AB16: 0
A17: 6 | T17: 30 | U17: 0 | V17: 12 | W17: 0 | X17: less | Y17: He Don't Deserve Leave Salary | AA17: desirve | AB17: 0
A18: 7 | T18: 30 | U18: 0 | V18: 12 | W18: 0 | X18: less | Y18: He Don't Deserve Leave Salary | AA18: desirve | AB18: 0
A19: 8 | T19: 30 | U19: 0 | V19: 12 | W19: 0 | X19: less | Y19: He Don't Deserve Leave Salary | AA19: desirve | AB19: 0
A20: 9 | T20: 30 | U20: 0 | V20: 12 | W20: 0 | X20: less | Y20: He Don't Deserve Leave Salary | AA20: desirve | AB20: 0
A21: 10 | T21: 30 | U21: 0 | V21: 12 | W21: 0 | X21: less | Y21: He Don't Deserve Leave Salary | AA21: desirve | AB21: 0
A22: 11 | T22: 30 | U22: 0 | V22: 12 | W22: 0 | X22: less | Y22: He Don't Deserve Leave Salary | AA22: desirve | AB22: 0
A23: 12 | T23: 30 | U23: 0 | V23: 12 | W23: 0 | X23: less | Y23: He Don't Deserve Leave Salary | AA23: desirve | AB23: 0
A24: 13 | T24: 30 | U24: 0 | V24: 12 | W24: 0 | X24: less | Y24: He Don't Deserve Leave Salary | AA24: desirve | AB24: 0
A25: 14 | T25: 30 | U25: 0 | V25: 12 | W25: 0 | X25: less | Y25: He Don't Deserve Leave Salary | AA25: desirve | AB25: 0
A26: 15 | T26: 30 | U26: 0 | V26: 12 | W26: 0 | X26: less | Y26: He Don't Deserve Leave Salary | AA26: desirve | AB26: 0
A27: 16 | T27: 30 | U27: 0 | V27: 12 | W27: 0 | X27: less | Y27: He Don't Deserve Leave Salary | AA27: desirve | AB27: 0
A28: 17 | T28: 30 | U28: 0 | V28: 12 | W28: 0 | X28: less | Y28: He Don't Deserve Leave Salary | AA28: desirve | AB28: 0
A29: 18 | T29: 30 | U29: 0 | V29: 12 | W29: 0 | X29: less | Y29: He Don't Deserve Leave Salary | AA29: desirve | AB29: 0
A30: 19 | T30: 30 | U30: 0 | V30: 12 | W30: 0 | X30: less | Y30: He Don't Deserve Leave Salary | AA30: desirve | AB30: 0
A31: 20 | T31: 30 | U31: 0 | V31: 12 | W31: 0 | X31: less | Y31: He Don't Deserve Leave Salary | AA31: desirve | AB31: 0
A32: 21 | T32: 30 | U32: 0 | V32: 12 | W32: 0 | X32: less | Y32: He Don't Deserve Leave Salary | AA32: desirve | AB32: 0
A33: 22 | T33: 30 | U33: 0 | V33: 12 | W33: 0 | X33: less | Y33: He Don't Deserve Leave Salary | AA33: desirve | AB33: 0
A34: 23 | T34: 30 | U34: 0 | V34: 12 | W34: 0 | X34: less | Y34: He Don't Deserve Leave Salary | AA34: desirve | AB34: 0
A35: 24 | T35: 30 | U35: 0 | V35: 12 | W35: 0 | X35: less | Y35: He Don't Deserve Leave Salary | AA35: desirve | AB35: 0
A36: 25 | T36: 30 | U36: 0 | V36: 12 | W36: 0 | X36: less | Y36: He Don't Deserve Leave Salary | AA36: desirve | AB36: 0
A37: 26 | T37: 30 | U37: 0 | V37: 12 | W37: 0 | X37: less | Y37: He Don't Deserve Leave Salary | AA37: desirve | AB37: 0
A38: 27 | T38: 30 | U38: 0 | V38: 12 | W38: 0 | X38: less | Y38: He Don't Deserve Leave Salary | AA38: desirve | AB38: 0
A39: 28 | T39: 30 | U39: 0 | V39: 12 | W39: 0 | X39: less | Y39: He Don't Deserve Leave Salary | AA39: desirve | AB39: 0
A40: 29 | T40: 30 | U40: 0 | V40: 12 | W40: 0 | X40: less | Y40: He Don't Deserve Leave Salary | AA40: desirve | AB40: 0
A41: 30 | T41: 30 | U41: 0 | V41: 12 | W41: 0 | X41: less | Y41: He Don't Deserve Leave Salary | AA41: desirve | AB41: 0
A42: 31 | T42: 30 | U42: 0 | V42: 12 | W42: 0 | X42: less | Y42: He Don't Deserve Leave Salary | AA42: desirve | AB42: 0
T43: 30 | U43: 0 | V43: 12 | W43: 0 | X43: less | Y43: He Don't Deserve Leave Salary | AA43: desirve | AB43: 0

Sheet 91977
A1: شركة المجموعة المشتركة للمقاولات (ش.م.ك.م )
A2: Combined Group Contracting Co. (K.S.C.C)
A5: LEAVE CALCULATION SHEET
A6: NAME: | B6: MUHAMMAD ASIF MUHAMMAD ASHRAF | C6: Employee No.: | F6: 91977
A7: DESIGNATION: | B7: LABOUR | C7: Joining Date: | F7: 2017-02-05
A9: Salary Details
A11: Basic | B11: 700
A12: Accomodation | B12: 0
A13: Bonus | B13: 0
A14: Food | B14: 0
A15: Total Salary | B15: =SUM(B11:G14) -> 700
A16: Working Days
A19: From | B19: =F7 -> 2017-02-05 | E19: 2019-08-30
A21: Days | B21: =+E19-B19+1 -> 937 | L21: 30 | M21: =B23*(30/365)-B26 -> 77.01369863
A22: Leave Without Pay | B22: 0 | L22: 12 | M22: =B23*(12/180)-B26 -> 62.46666667
A23: Net working days | B23: =B21-B22 -> 937 | L23: less | M23: He Don't Deserve Leave Salary
L24: desirve | M24: =IF(B23<365,M22,M21) -> 77.01369863
A25: Leave Balance Calculation
A26: Previouse Paid Leave (days) | B26: 0 | C26: Days
A28: Desirve Leaves ( Days) | B28: =IF(B23<=365,M23,M24) -> 77.01369863 | E28: Days | G28: New Leave Balance | I28: =B28-B35 -> 0.003698630137 | J28: Days
A30: Payment
A33: Required Days From employees | B33: 90
A35: Paid Days | B35: 77.01
A36: Unpaid days | B36: =B33-B35 -> 12.99
A38: Calculation | B38: =B15*B35/30 -> 1796.9 | C38: DHS
A41: Mohamed Sobhi | F41: Mohammed Al Hariri
A42: Admin Supervisor | F42: HR / Admin manager
E50: 36.78
E51: 3.85
E52: 55

Sheet 92107
A1: شركة المجموعة المشتركة للمقاولات (ش.م.ك.م )
A2: Combined Group Contracting Co. (K.S.C.C)
A5: LEAVE CALCULATION SHEET
A6: NAME: | B6: MUHAMMAD SHABIR MUHAMMAD KHAN | C6: Employee No.: | F6: 92107
A7: DESIGNATION: | B7: LABOUR | C7: Joining Date: | F7: 2018-05-23
A9: Salary Details
A11: Basic | B11: 1500
A12: Accomodation | B12: 0
A13: Bonus | B13: 0
A14: Food | B14: 0
A15: Total Salary | B15: =SUM(B11:G14) -> 1500
A16: Working Days
A19: From | B19: =F7 -> 2018-05-23 | E19: 2019-08-13
A21: Days | B21: =+E19-B19+1 -> 448 | L21: 30 | M21: =B23*(30/365)-B26 -> 36.82191781
A22: Leave Without Pay | B22: 0 | L22: 12 | M22: =B23*(12/180)-B26 -> 29.86666667
A23: Net working days | B23: =B21-B22 -> 448 | L23: less | M23: He Don't Deserve Leave Salary
L24: desirve | M24: =IF(B23<365,M22,M21) -> 36.82191781
A25: Leave Balance Calculation
A26: Previouse Paid Leave (days) | B26: 0 | C26: Days
A28: Desirve Leaves ( Days) | B28: =IF(B23<=182,M23,M24) -> 36.82191781 | E28: Days | G28: New Leave Balance | I28: =B28-B35 -> 0.001917808219 | J28: Days
A30: Payment
A33: Required Days From employees | B33: 66
A35: Paid Days | B35: 36.82
A36: Unpaid days | B36: =B33-B35 -> 29.18
A38: Calculation | B38: =B15*B35/30 -> 1841 | C38: DHS
A41: Mohamed Sobhi | F41: Mohammed Al Hariri
A42: Admin Supervisor | F42: HR / Admin manager
E50: 36.78
E51: 3.85
E52: 55
